[Event "Titled Tuesday Blitz May 24 Early 2022"]
[White "Juhasz, Agoston"]
[Black "Melikhov, Evgeny V."]
[WhiteFideId "778346"]
[BlackFideId "4122046"]
[WhiteElo "2211"]
[BlackElo "1931"]
[Result "1-0"]
[Round "09"]
[TimeControl "180+1"]
[Date "2022.05.25"]
[WhiteClock "0:00:09"]
[BlackClock "0:00:05"]

1. d4 {[%clk 0:02:54]}  Nf6 {[%clk 0:02:59]} 2. c4 {[%clk 0:02:53]}  e6 {[%clk 0:03:00]} 3. Nc3 {[%clk 0:02:53]}  Bb4 {[%clk 0:03:00]} 4. e3 {[%clk 0:02:52]}  b6 {[%clk 0:02:59]} 5. Bd2 {[%clk 0:02:48]}  O-O {[%clk 0:02:51]} 6. Nf3 {[%clk 0:02:44]}  Bb7 {[%clk 0:02:50]} 7. a3 {[%clk 0:02:43]}  Be7 {[%clk 0:02:48]} 8. Bd3 {[%clk 0:02:41]}  c5 {[%clk 0:02:45]} 9. O-O {[%clk 0:02:35]}  d6 {[%clk 0:02:44]} 10. b4 {[%clk 0:02:30]}  cxd4 {[%clk 0:02:42]} 11. exd4 {[%clk 0:02:27]}  Nbd7 {[%clk 0:02:42]} 12. Qe2 {[%clk 0:02:25]}  a6 {[%clk 0:02:42]} 13. Rfd1 {[%clk 0:02:24]}  Re8 {[%clk 0:02:40]} 14. Rac1 {[%clk 0:02:23]}  Qc7 {[%clk 0:02:39]} 15. Bf4 {[%clk 0:02:22]}  e5 {[%clk 0:02:30]} 16. Bg3 {[%clk 0:01:58]}  Nh5 {[%clk 0:02:23]} 17. Nd5 {[%clk 0:01:41]}  Bxd5 {[%clk 0:02:22]} 18. cxd5 {[%clk 0:01:41]}  Nxg3 {[%clk 0:02:23]} 19. hxg3 {[%clk 0:01:33]}  Qb7 {[%clk 0:02:22]} 20. dxe5 {[%clk 0:01:27]}  Nxe5 {[%clk 0:02:15]} 21. Nxe5 {[%clk 0:01:25]}  dxe5 {[%clk 0:02:00]} 22. d6 {[%clk 0:01:11]}  Bxd6 {[%clk 0:01:55]} 23. Be4 {[%clk 0:01:08]}  Qe7 {[%clk 0:01:54]} 24. Bxa8 {[%clk 0:01:07]}  Rxa8 {[%clk 0:01:55]} 25. Rc6 {[%clk 0:01:00]}  Bc7 {[%clk 0:01:35]} 26. Rdc1 {[%clk 0:00:58]}  Bd8 {[%clk 0:01:32]} 27. Rc8 {[%clk 0:00:56]}  Rxc8 {[%clk 0:01:31]} 28. Rxc8 {[%clk 0:00:57]}  Qd7 {[%clk 0:01:24]} 29. Qxa6 {[%clk 0:00:51]}  Kf8 {[%clk 0:01:14]} 30. Rc1 {[%clk 0:00:44]}  g6 {[%clk 0:01:09]} 31. Qc8 {[%clk 0:00:44]}  Qd5 {[%clk 0:01:02]} 32. Qc2 {[%clk 0:00:41]}  Kg7 {[%clk 0:01:02]} 33. Rd1 {[%clk 0:00:41]}  Qa8 {[%clk 0:01:01]} 34. a4 {[%clk 0:00:39]}  Be7 {[%clk 0:00:59]} 35. Qb3 {[%clk 0:00:37]}  Qc6 {[%clk 0:00:56]} 36. a5 {[%clk 0:00:36]}  b5 {[%clk 0:00:55]} 37. Qd5 {[%clk 0:00:33]}  Qa6 {[%clk 0:00:30]} 38. Qxe5+ {[%clk 0:00:30]}  Bf6 {[%clk 0:00:31]} 39. Qd6 {[%clk 0:00:28]}  Qa7 {[%clk 0:00:24]} 40. Qb6 {[%clk 0:00:25]}  Qe7 {[%clk 0:00:21]} 41. Qxb5 {[%clk 0:00:25]}  Bc3 {[%clk 0:00:21]} 42. Qc4 {[%clk 0:00:22]}  Bxb4 {[%clk 0:00:20]} 43. a6 {[%clk 0:00:23]}  Bc5 {[%clk 0:00:20]} 44. Rb1 {[%clk 0:00:22]}  Ba7 {[%clk 0:00:15]} 45. Qc3+ {[%clk 0:00:16]}  Kh6 {[%clk 0:00:14]} 46. Qd2+ {[%clk 0:00:16]}  Kg7 {[%clk 0:00:14]} 47. Rb7 {[%clk 0:00:15]}  Qc5 {[%clk 0:00:13]} 48. Rd7 {[%clk 0:00:09]}  Qb6 {[%clk 0:00:13]} 49. Rd6 {[%clk 0:00:09]}  Qc5 {[%clk 0:00:12]} 50. Rd3 {[%clk 0:00:08]}  Qb6 {[%clk 0:00:12]} 51. Qc3+ {[%clk 0:00:07]}  Kh6 {[%clk 0:00:12]} 52. Qd2+ {[%clk 0:00:08]}  Kg7 {[%clk 0:00:12]} 53. Qa2 {[%clk 0:00:08]}  Kh6 {[%clk 0:00:10]} 54. Rf3 {[%clk 0:00:05]}  f5 {[%clk 0:00:10]} 55. Qd2+ {[%clk 0:00:05]}  Kg7 {[%clk 0:00:10]} 56. Qd7+ {[%clk 0:00:05]}  Kh6 {[%clk 0:00:09]} 57. Qb7 {[%clk 0:00:05]}  Qc5 {[%clk 0:00:09]} 58. Qb1 {[%clk 0:00:04]}  Kg5 {[%clk 0:00:08]} 59. Qd1 {[%clk 0:00:04]}  Kf6 {[%clk 0:00:06]} 60. Qd8+ {[%clk 0:00:04]}  Kf7 {[%clk 0:00:05]} 61. Qd7+ {[%clk 0:00:04]}  Kf6 {[%clk 0:00:06]} 62. Qd8+ {[%clk 0:00:04]}  Kf7 {[%clk 0:00:06]} 63. Qd3 {[%clk 0:00:05]}  Kf6 {[%clk 0:00:06]} 64. Qb3 {[%clk 0:00:05]}  Kg5 {[%clk 0:00:05]} 65. Qe3+ {[%clk 0:00:05]}  Kf6 {[%clk 0:00:05]} 66. Qxc5 {[%clk 0:00:05]}  Bxc5 {[%clk 0:00:06]} 67. Rb3 {[%clk 0:00:06]}  Ke5 {[%clk 0:00:05]} 68. Rb7 {[%clk 0:00:07]}  Kd6 {[%clk 0:00:04]} 69. a7 {[%clk 0:00:08]}  Bxa7 {[%clk 0:00:05]} 70. Rxa7 {[%clk 0:00:08]}  h5 {[%clk 0:00:05]} 71. Rh7 {[%clk 0:00:09]} 1-0


[Site "https://www.chess.com"]

[Event "Titled Tuesday Blitz May 24 Early 2022"]
[White "Keymer, Vincent"]
[Black "Kamsky, Gata"]
[WhiteFideId "12940690"]
[BlackFideId "2000024"]
[WhiteElo "2548"]
[BlackElo "2645"]
[Result "0-1"]
[Round "09"]
[TimeControl "180+1"]
[Date "2022.05.24"]
[WhiteClock "0:00:01"]
[BlackClock "0:00:29"]

1. d4 {[%clk 0:03:00]}  d5 {[%clk 0:02:58]} 2. c4 {[%clk 0:03:01]}  c6 {[%clk 0:02:58]} 3. Nf3 {[%clk 0:03:01]}  Nf6 {[%clk 0:02:57]} 4. e3 {[%clk 0:03:01]}  Bg4 {[%clk 0:02:55]} 5. cxd5 {[%clk 0:03:01]}  cxd5 {[%clk 0:02:54]} 6. Nc3 {[%clk 0:02:48]}  Nc6 {[%clk 0:02:46]} 7. Qb3 {[%clk 0:02:47]}  Na5 {[%clk 0:02:13]} 8. Qa4+ {[%clk 0:02:43]}  Bd7 {[%clk 0:02:12]} 9. Bb5 {[%clk 0:02:40]}  Nc6 {[%clk 0:02:10]} 10. Ne5 {[%clk 0:02:33]}  Qc7 {[%clk 0:01:44]} 11. Nxd7 {[%clk 0:01:40]}  Qxd7 {[%clk 0:01:41]} 12. Bd2 {[%clk 0:01:40]}  e6 {[%clk 0:01:39]} 13. Rc1 {[%clk 0:01:39]}  Rc8 {[%clk 0:01:28]} 14. O-O {[%clk 0:01:30]}  a6 {[%clk 0:01:28]} 15. Be2 {[%clk 0:01:28]}  Be7 {[%clk 0:01:26]} 16. h3 {[%clk 0:01:22]}  O-O {[%clk 0:01:24]} 17. Rfd1 {[%clk 0:01:17]}  Rc7 {[%clk 0:01:20]} 18. Qc2 {[%clk 0:01:05]}  b5 {[%clk 0:01:18]} 19. Qb1 {[%clk 0:01:05]}  Rb8 {[%clk 0:01:10]} 20. Be1 {[%clk 0:01:01]}  b4 {[%clk 0:00:58]} 21. Na4 {[%clk 0:00:57]}  Nxd4 {[%clk 0:00:58]} 22. Rxd4 {[%clk 0:00:35]}  Rxc1 {[%clk 0:00:58]} 23. Qxc1 {[%clk 0:00:36]}  Qxa4 {[%clk 0:00:57]} 24. Qc7 {[%clk 0:00:37]}  Qe8 {[%clk 0:00:57]} 25. Bxa6 {[%clk 0:00:30]}  g6 {[%clk 0:00:51]} 26. Qc2 {[%clk 0:00:18]}  Ra8 {[%clk 0:00:48]} 27. Bf1 {[%clk 0:00:17]}  Rxa2 {[%clk 0:00:44]} 28. Bxb4 {[%clk 0:00:16]}  Bxb4 {[%clk 0:00:44]} 29. Rxb4 {[%clk 0:00:17]}  Ra1 {[%clk 0:00:40]} 30. Rb7 {[%clk 0:00:14]}  Qd8 {[%clk 0:00:33]} 31. b4 {[%clk 0:00:11]}  Ne4 {[%clk 0:00:32]} 32. Rc7 {[%clk 0:00:10]}  Qf6 {[%clk 0:00:31]} 33. b5 {[%clk 0:00:05]}  Ng3 {[%clk 0:00:30]} 34. Qc3 {[%clk 0:00:01]}  Ne2+ {[%clk 0:00:29]} 0-1


[Site "https://www.chess.com"]

[Event "Titled Tuesday Blitz May 24 Early 2022"]
[White "Khamdamova, Afruza"]
[Black "Stanisz, Patryk"]
[WhiteFideId "14210444"]
[BlackFideId "1123106"]
[WhiteElo "1660"]
[BlackElo "1833"]
[Result "1-0"]
[Round "09"]
[TimeControl "180+1"]
[Date "2022.05.25"]
[WhiteClock "0:00:18"]
[BlackClock "0:00:01"]

1. e4 {[%clk 0:03:00]}  c5 {[%clk 0:02:57]} 2. Nf3 {[%clk 0:03:00]}  Nc6 {[%clk 0:02:56]} 3. d4 {[%clk 0:03:00]}  cxd4 {[%clk 0:02:57]} 4. Nxd4 {[%clk 0:03:01]}  Nf6 {[%clk 0:02:58]} 5. Nc3 {[%clk 0:03:01]}  e5 {[%clk 0:02:58]} 6. Ndb5 {[%clk 0:03:00]}  d6 {[%clk 0:02:58]} 7. Nd5 {[%clk 0:03:00]}  Nxd5 {[%clk 0:02:58]} 8. exd5 {[%clk 0:03:00]}  Ne7 {[%clk 0:02:58]} 9. c4 {[%clk 0:03:00]}  Nf5 {[%clk 0:02:58]} 10. Bd3 {[%clk 0:02:59]}  Be7 {[%clk 0:02:58]} 11. O-O {[%clk 0:02:55]}  O-O {[%clk 0:02:56]} 12. Qc2 {[%clk 0:02:49]}  g6 {[%clk 0:02:51]} 13. b4 {[%clk 0:02:29]}  a5 {[%clk 0:02:45]} 14. Bd2 {[%clk 0:02:24]}  axb4 {[%clk 0:02:40]} 15. Bxb4 {[%clk 0:02:24]}  Nh4 {[%clk 0:02:26]} 16. f4 {[%clk 0:01:48]}  exf4 {[%clk 0:02:05]} 17. Rxf4 {[%clk 0:01:47]}  Bg5 {[%clk 0:01:57]} 18. Rff1 {[%clk 0:01:47]}  Bf5 {[%clk 0:01:53]} 19. Bxd6 {[%clk 0:01:42]}  Be3+ {[%clk 0:01:43]} 20. Kh1 {[%clk 0:01:42]}  Bxd3 {[%clk 0:01:25]} 21. Qxd3 {[%clk 0:01:41]}  Qg5 {[%clk 0:01:26]} 22. Bg3 {[%clk 0:01:26]}  Nf5 {[%clk 0:01:23]} 23. Rf3 {[%clk 0:01:24]}  Bc5 {[%clk 0:01:18]} 24. Bf2 {[%clk 0:01:11]}  Bxf2 {[%clk 0:00:44]} 25. Rxf2 {[%clk 0:01:11]}  Qf6 {[%clk 0:00:45]} 26. Raf1 {[%clk 0:01:10]}  Qh4 {[%clk 0:00:26]} 27. a3 {[%clk 0:00:54]}  Rae8 {[%clk 0:00:21]} 28. Rf4 {[%clk 0:00:52]}  Qh6 {[%clk 0:00:18]} 29. Rxf5 {[%clk 0:00:44]}  gxf5 {[%clk 0:00:17]} 30. Qxf5 {[%clk 0:00:44]}  Qg6 {[%clk 0:00:07]} 31. Qf3 {[%clk 0:00:43]}  Re4 {[%clk 0:00:03]} 32. Nd6 {[%clk 0:00:33]}  Rd4 {[%clk 0:00:02]} 33. c5 {[%clk 0:00:32]}  Rd3 {[%clk 0:00:01]} 34. Qf5 {[%clk 0:00:21]}  Kg7 {[%clk 0:00:02]} 35. Qe5+ {[%clk 0:00:18]}  Kg8 {[%clk 0:00:01]} 36. Nf5 {[%clk 0:00:18]} 1-0


[Site "https://www.chess.com"]

[Event "Titled Tuesday Blitz May 24 Early 2022"]
[White "Kruckenhauser, Arthur"]
[Black "Rios Escobar, Adan"]
[WhiteFideId "1642812"]
[BlackFideId "3403645"]
[WhiteElo "2243"]
[BlackElo "2439"]
[Result "1-0"]
[Round "09"]
[TimeControl "180+1"]
[Date "2022.05.25"]
[WhiteClock "0:02:08"]
[BlackClock "0:00:03"]

1. e4 {[%clk 0:02:49]}  c5 {[%clk 0:02:58]} 2. Nc3 {[%clk 0:02:50]}  d6 {[%clk 0:02:58]} 3. f4 {[%clk 0:02:50]}  g6 {[%clk 0:02:49]} 4. Nf3 {[%clk 0:02:50]}  Bg7 {[%clk 0:02:49]} 5. Bb5+ {[%clk 0:02:50]}  Nd7 {[%clk 0:02:44]} 6. O-O {[%clk 0:02:47]}  a6 {[%clk 0:02:41]} 7. Bc4 {[%clk 0:02:47]}  e6 {[%clk 0:02:35]} 8. f5 {[%clk 0:02:48]}  gxf5 {[%clk 0:02:22]} 9. d3 {[%clk 0:02:42]}  Ne7 {[%clk 0:02:14]} 10. Bg5 {[%clk 0:02:40]}  b5 {[%clk 0:02:06]} 11. Bb3 {[%clk 0:02:40]}  fxe4 {[%clk 0:02:01]} 12. Nxe4 {[%clk 0:02:34]}  Qb6 {[%clk 0:01:51]} 13. Kh1 {[%clk 0:02:25]}  d5 {[%clk 0:01:42]} 14. Bxe7 {[%clk 0:02:18]}  Kxe7 {[%clk 0:01:43]} 15. Nfg5 {[%clk 0:02:17]}  Rf8 {[%clk 0:00:46]} 16. Qh5 {[%clk 0:02:15]}  dxe4 {[%clk 0:00:13]} 17. Rxf7+ {[%clk 0:02:13]}  Kd8 {[%clk 0:00:13]} 18. Nxe6+ {[%clk 0:02:12]}  Qxe6 {[%clk 0:00:11]} 19. Bxe6 {[%clk 0:02:13]}  Bxb2 {[%clk 0:00:10]} 20. Raf1 {[%clk 0:02:10]}  Rxf7 {[%clk 0:00:08]} 21. Rxf7 {[%clk 0:02:11]}  Ra7 {[%clk 0:00:08]} 22. Qd5 {[%clk 0:02:09]}  e3 {[%clk 0:00:05]} 23. Qd6 {[%clk 0:02:09]}  Bg7 {[%clk 0:00:03]} 24. Rxg7 {[%clk 0:02:07]}  e2 {[%clk 0:00:03]} 25. Rg8# {[%clk 0:02:08]} 1-0


[Site "https://www.chess.com"]

[Event "Titled Tuesday Blitz May 24 Early 2022"]
[White "Lutz, Igor Oscar"]
[Black "Clawitter, Craig"]
[WhiteFideId "2110806"]
[BlackFideId "2023105"]
[WhiteElo "1722"]
[BlackElo "2210"]
[Result "1/2-1/2"]
[Round "09"]
[TimeControl "180+1"]
[Date "2022.05.25"]
[WhiteClock "0:00:39"]
[BlackClock "0:00:22"]

1. d4 {[%clk 0:03:00]}  e6 {[%clk 0:02:39]} 2. c4 {[%clk 0:02:58]}  Nf6 {[%clk 0:02:38]} 3. g3 {[%clk 0:02:58]}  d5 {[%clk 0:02:38]} 4. Bg2 {[%clk 0:02:58]}  Be7 {[%clk 0:02:39]} 5. Nf3 {[%clk 0:02:58]}  O-O {[%clk 0:02:39]} 6. O-O {[%clk 0:02:59]}  dxc4 {[%clk 0:02:39]} 7. Nbd2 {[%clk 0:02:59]}  c5 {[%clk 0:02:36]} 8. Nxc4 {[%clk 0:02:55]}  Nc6 {[%clk 0:02:34]} 9. dxc5 {[%clk 0:02:48]}  Bxc5 {[%clk 0:02:31]} 10. Bg5 {[%clk 0:02:46]}  Qxd1 {[%clk 0:02:21]} 11. Rfxd1 {[%clk 0:02:46]}  Ne4 {[%clk 0:02:22]} 12. Be3 {[%clk 0:02:41]}  Bxe3 {[%clk 0:02:21]} 13. Nxe3 {[%clk 0:02:42]}  Nc5 {[%clk 0:02:00]} 14. Rac1 {[%clk 0:02:38]}  Na4 {[%clk 0:01:53]} 15. b3 {[%clk 0:02:29]}  Nb6 {[%clk 0:01:53]} 16. Nd4 {[%clk 0:02:24]}  Nxd4 {[%clk 0:01:47]} 17. Rxd4 {[%clk 0:02:25]}  e5 {[%clk 0:01:47]} 18. Rd6 {[%clk 0:02:18]}  Rb8 {[%clk 0:01:37]} 19. Rc7 {[%clk 0:02:15]}  Re8 {[%clk 0:01:13]} 20. Nd5 {[%clk 0:02:06]}  Na8 {[%clk 0:01:05]} 21. Ne7+ {[%clk 0:01:55]}  Kf8 {[%clk 0:01:00]} 22. Nd5 {[%clk 0:01:33]}  Nxc7 {[%clk 0:00:52]} 23. Nxc7 {[%clk 0:01:34]}  Be6 {[%clk 0:00:40]} 24. Nxe8 {[%clk 0:01:31]}  Kxe8 {[%clk 0:00:41]} 25. h4 {[%clk 0:01:10]}  Ke7 {[%clk 0:00:34]} 26. Rd3 {[%clk 0:01:02]}  b6 {[%clk 0:00:34]} 27. Rc3 {[%clk 0:01:01]}  Rc8 {[%clk 0:00:32]} 28. Rxc8 {[%clk 0:00:59]}  Bxc8 {[%clk 0:00:33]} 29. Bd5 {[%clk 0:00:57]}  Be6 {[%clk 0:00:29]} 30. Bxe6 {[%clk 0:00:53]}  Kxe6 {[%clk 0:00:30]} 31. Kg2 {[%clk 0:00:54]}  Kd5 {[%clk 0:00:25]} 32. Kf3 {[%clk 0:00:48]}  Kd4 {[%clk 0:00:25]} 33. e3+ {[%clk 0:00:43]}  Kc3 {[%clk 0:00:25]} 34. Ke4 {[%clk 0:00:43]}  f6 {[%clk 0:00:26]} 35. f4 {[%clk 0:00:43]}  exf4 {[%clk 0:00:24]} 36. gxf4 {[%clk 0:00:44]}  Kb2 {[%clk 0:00:24]} 37. Kd5 {[%clk 0:00:45]}  Kxa2 {[%clk 0:00:24]} 38. e4 {[%clk 0:00:46]}  Kxb3 {[%clk 0:00:24]} 39. e5 {[%clk 0:00:46]}  fxe5 {[%clk 0:00:24]} 40. fxe5 {[%clk 0:00:47]}  a5 {[%clk 0:00:25]} 41. e6 {[%clk 0:00:48]}  a4 {[%clk 0:00:25]} 42. e7 {[%clk 0:00:48]}  a3 {[%clk 0:00:26]} 43. e8=Q {[%clk 0:00:49]}  a2 {[%clk 0:00:26]} 44. Qb5+ {[%clk 0:00:45]}  Kc2 {[%clk 0:00:26]} 45. Qc4+ {[%clk 0:00:45]}  Kb2 {[%clk 0:00:25]} 46. Qb4+ {[%clk 0:00:45]}  Kc2 {[%clk 0:00:22]} 47. Qc4+ {[%clk 0:00:45]}  Kb2 {[%clk 0:00:22]} 48. Qb4+ {[%clk 0:00:38]}  Kc2 {[%clk 0:00:22]} 49. Qc4+ {[%clk 0:00:39]} 1/2-1/2


[Site "https://www.chess.com"]

[Event "Titled Tuesday Blitz May 24 Early 2022"]
[White "Martinez, Shawn"]
[Black "Ljukin, Sergei"]
[WhiteFideId "2039770"]
[BlackFideId "14102200"]
[WhiteElo "2174"]
[BlackElo "2312"]
[Result "1/2-1/2"]
[Round "09"]
[TimeControl "180+1"]
[Date "2022.05.25"]
[WhiteClock "0:00:26"]
[BlackClock "0:00:02"]

1. e4 {[%clk 0:02:57]}  e6 {[%clk 0:02:58]} 2. d4 {[%clk 0:02:46]}  d5 {[%clk 0:02:59]} 3. Bd3 {[%clk 0:02:46]}  dxe4 {[%clk 0:02:58]} 4. Bxe4 {[%clk 0:02:47]}  Nf6 {[%clk 0:02:57]} 5. Bf3 {[%clk 0:02:48]}  Bd6 {[%clk 0:02:57]} 6. Ne2 {[%clk 0:02:42]}  Nbd7 {[%clk 0:02:57]} 7. O-O {[%clk 0:02:42]}  e5 {[%clk 0:02:58]} 8. dxe5 {[%clk 0:02:41]}  Nxe5 {[%clk 0:02:58]} 9. Nd4 {[%clk 0:02:42]}  Nxf3+ {[%clk 0:02:56]} 10. Nxf3 {[%clk 0:02:38]}  O-O {[%clk 0:02:54]} 11. Nc3 {[%clk 0:02:39]}  Bg4 {[%clk 0:02:53]} 12. Be3 {[%clk 0:02:40]}  Bb4 {[%clk 0:02:43]} 13. Bd4 {[%clk 0:02:30]}  Bxf3 {[%clk 0:02:39]} 14. gxf3 {[%clk 0:02:20]}  Bxc3 {[%clk 0:02:34]} 15. Bxc3 {[%clk 0:02:11]}  Nd5 {[%clk 0:02:29]} 16. Be5 {[%clk 0:02:04]}  Qg5+ {[%clk 0:02:20]} 17. Bg3 {[%clk 0:02:04]}  h5 {[%clk 0:02:20]} 18. h4 {[%clk 0:02:03]}  Qf5 {[%clk 0:02:20]} 19. Re1 {[%clk 0:02:01]}  Nf4 {[%clk 0:01:58]} 20. Qd4 {[%clk 0:01:48]}  Ng6 {[%clk 0:01:55]} 21. Qe4 {[%clk 0:01:43]}  Qc5 {[%clk 0:01:51]} 22. c3 {[%clk 0:01:38]}  f5 {[%clk 0:01:15]} 23. Qe6+ {[%clk 0:01:19]}  Kh7 {[%clk 0:01:14]} 24. f4 {[%clk 0:01:08]}  Rad8 {[%clk 0:00:56]} 25. Rad1 {[%clk 0:01:06]}  Rf6 {[%clk 0:00:48]} 26. Rxd8 {[%clk 0:01:01]}  Rxe6 {[%clk 0:00:47]} 27. Rxe6 {[%clk 0:01:02]}  Qc4 {[%clk 0:00:43]} 28. Re3 {[%clk 0:00:44]}  Nxf4 {[%clk 0:00:41]} 29. Rd7 {[%clk 0:00:40]}  Ne2+ {[%clk 0:00:35]} 30. Kh2 {[%clk 0:00:39]}  f4 {[%clk 0:00:33]} 31. Ree7 {[%clk 0:00:37]}  fxg3+ {[%clk 0:00:31]} 32. fxg3 {[%clk 0:00:35]}  Nc1 {[%clk 0:00:09]} 33. Rxg7+ {[%clk 0:00:33]}  Kh8 {[%clk 0:00:09]} 34. Rh7+ {[%clk 0:00:33]}  Kg8 {[%clk 0:00:10]} 35. Rhe7 {[%clk 0:00:33]}  Kf8 {[%clk 0:00:08]} 36. Rh7 {[%clk 0:00:33]}  Qe2+ {[%clk 0:00:07]} 37. Kh3 {[%clk 0:00:31]}  Qg4+ {[%clk 0:00:07]} 38. Kh2 {[%clk 0:00:31]}  Qe2+ {[%clk 0:00:07]} 39. Kh3 {[%clk 0:00:31]}  Qf1+ {[%clk 0:00:04]} 40. Kh2 {[%clk 0:00:31]}  Kg8 {[%clk 0:00:05]} 41. Rhg7+ {[%clk 0:00:31]}  Kf8 {[%clk 0:00:04]} 42. Rh7 {[%clk 0:00:31]}  Kg8 {[%clk 0:00:04]} 43. Rhe7 {[%clk 0:00:29]}  Qf2+ {[%clk 0:00:03]} 44. Kh3 {[%clk 0:00:29]}  Qf1+ {[%clk 0:00:01]} 45. Kh2 {[%clk 0:00:29]}  Kf8 {[%clk 0:00:02]} 46. Rh7 {[%clk 0:00:26]} 1/2-1/2


[Site "https://www.chess.com"]

[Event "Titled Tuesday Blitz May 24 Early 2022"]
[White "Meunier-Pion, Jean"]
[Black "Tologon tegin, Semetei"]
[WhiteFideId "20685327"]
[BlackFideId "13800574"]
[WhiteElo "2124"]
[BlackElo "2258"]
[Result "0-1"]
[Round "09"]
[TimeControl "180+1"]
[Date "2022.05.25"]
[WhiteClock "0:00:01"]
[BlackClock "0:00:07"]

1. e4 {[%clk 0:03:00]}  e5 {[%clk 0:02:45]} 2. Nf3 {[%clk 0:03:00]}  Nc6 {[%clk 0:02:44]} 3. Bb5 {[%clk 0:03:00]}  a6 {[%clk 0:02:43]} 4. Ba4 {[%clk 0:03:01]}  Nf6 {[%clk 0:02:43]} 5. d3 {[%clk 0:03:01]}  Bc5 {[%clk 0:02:40]} 6. c3 {[%clk 0:02:59]}  d6 {[%clk 0:02:35]} 7. O-O {[%clk 0:02:58]}  b5 {[%clk 0:02:31]} 8. Bc2 {[%clk 0:02:58]}  Bg4 {[%clk 0:02:28]} 9. a4 {[%clk 0:02:51]}  O-O {[%clk 0:02:27]} 10. h3 {[%clk 0:02:42]}  Bh5 {[%clk 0:02:26]} 11. Be3 {[%clk 0:02:41]}  b4 {[%clk 0:02:09]} 12. Nbd2 {[%clk 0:02:24]}  Rb8 {[%clk 0:02:05]} 13. Bxc5 {[%clk 0:02:14]}  dxc5 {[%clk 0:02:04]} 14. Qc1 {[%clk 0:02:04]}  Bxf3 {[%clk 0:01:59]} 15. Nxf3 {[%clk 0:02:05]}  b3 {[%clk 0:02:00]} 16. Bb1 {[%clk 0:02:05]}  Qd6 {[%clk 0:01:52]} 17. Qg5 {[%clk 0:02:00]}  h6 {[%clk 0:01:48]} 18. Qe3 {[%clk 0:01:52]}  Rfd8 {[%clk 0:01:43]} 19. Nh4 {[%clk 0:01:52]}  Ne7 {[%clk 0:01:35]} 20. f4 {[%clk 0:01:08]}  exf4 {[%clk 0:01:20]} 21. Qxf4 {[%clk 0:01:09]}  Qxf4 {[%clk 0:01:17]} 22. Rxf4 {[%clk 0:01:10]}  Nd7 {[%clk 0:00:59]} 23. Nf5 {[%clk 0:00:39]}  Nxf5 {[%clk 0:00:56]} 24. Rxf5 {[%clk 0:00:40]}  f6 {[%clk 0:00:37]} 25. Kf2 {[%clk 0:00:36]}  Ne5 {[%clk 0:00:35]} 26. Ke3 {[%clk 0:00:31]}  a5 {[%clk 0:00:34]} 27. Ke2 {[%clk 0:00:17]}  Rd6 {[%clk 0:00:34]} 28. g4 {[%clk 0:00:13]}  g6 {[%clk 0:00:27]} 29. Rf1 {[%clk 0:00:12]}  Kf7 {[%clk 0:00:27]} 30. Ra3 {[%clk 0:00:12]}  Ke7 {[%clk 0:00:26]} 31. Ke3 {[%clk 0:00:12]}  g5 {[%clk 0:00:17]} 32. Ke2 {[%clk 0:00:07]}  c4 {[%clk 0:00:15]} 33. d4 {[%clk 0:00:07]}  Ng6 {[%clk 0:00:14]} 34. Rf5 {[%clk 0:00:06]}  Nf4+ {[%clk 0:00:14]} 35. Kf3 {[%clk 0:00:05]}  Ra8 {[%clk 0:00:13]} 36. e5 {[%clk 0:00:02]}  fxe5 {[%clk 0:00:13]} 37. Rxe5+ {[%clk 0:00:03]}  Re6 {[%clk 0:00:12]} 38. Bf5 {[%clk 0:00:04]}  Rxe5 {[%clk 0:00:12]} 39. dxe5 {[%clk 0:00:04]}  Rd8 {[%clk 0:00:09]} 40. Ra1 {[%clk 0:00:02]}  Rd2 {[%clk 0:00:09]} 41. Rb1 {[%clk 0:00:03]}  Nxh3 {[%clk 0:00:09]} 42. Be4 {[%clk 0:00:02]}  Nf4 {[%clk 0:00:08]} 43. Ke3 {[%clk 0:00:02]}  Rh2 {[%clk 0:00:08]} 44. Kd4 {[%clk 0:00:02]}  Re2 {[%clk 0:00:05]} 45. Bf5 {[%clk 0:00:02]}  Ne6+ {[%clk 0:00:03]} 46. Kxc4 {[%clk 0:00:01]}  Rxe5 {[%clk 0:00:04]} 47. Kxb3 {[%clk 0:00:02]}  Nc5+ {[%clk 0:00:03]} 48. Kc2 {[%clk 0:00:02]}  Nxa4 {[%clk 0:00:04]} 49. b3 {[%clk 0:00:02]}  Nb6 {[%clk 0:00:04]} 50. Kd3 {[%clk 0:00:02]}  h5 {[%clk 0:00:04]} 51. c4 {[%clk 0:00:02]}  Kf7 {[%clk 0:00:04]} 52. Rf1 {[%clk 0:00:02]}  hxg4 {[%clk 0:00:05]} 53. Bxg4+ {[%clk 0:00:02]}  Ke7 {[%clk 0:00:06]} 54. Bf3 {[%clk 0:00:02]}  Rf5 {[%clk 0:00:06]} 55. Re1+ {[%clk 0:00:02]}  Kd6 {[%clk 0:00:06]} 56. Be4 {[%clk 0:00:03]}  Rf4 {[%clk 0:00:06]} 57. Rh1 {[%clk 0:00:03]}  Nd7 {[%clk 0:00:07]} 58. Rh6+ {[%clk 0:00:04]}  Kc5 {[%clk 0:00:07]} 59. Rh7 {[%clk 0:00:04]}  Ne5+ {[%clk 0:00:07]} 60. Ke3 {[%clk 0:00:05]}  Ng4+ {[%clk 0:00:08]} 61. Kd2 {[%clk 0:00:04]}  Rxe4 {[%clk 0:00:07]} 62. Rxc7+ {[%clk 0:00:05]}  Kb4 {[%clk 0:00:08]} 63. Rb7+ {[%clk 0:00:05]}  Ka3 {[%clk 0:00:08]} 64. Rb5 {[%clk 0:00:06]}  a4 {[%clk 0:00:08]} 65. bxa4 {[%clk 0:00:07]}  Ne5 {[%clk 0:00:07]} 66. Kc3 {[%clk 0:00:06]}  Rxc4+ {[%clk 0:00:07]} 67. Kd2 {[%clk 0:00:06]}  Re4 {[%clk 0:00:07]} 68. Kc3 {[%clk 0:00:06]}  Kxa4 {[%clk 0:00:08]} 69. Rb1 {[%clk 0:00:06]}  g4 {[%clk 0:00:08]} 70. Kd2 {[%clk 0:00:05]}  g3 {[%clk 0:00:07]} 71. Rg1 {[%clk 0:00:05]}  Rg4 {[%clk 0:00:08]} 72. Ke3 {[%clk 0:00:04]}  Kb4 {[%clk 0:00:07]} 73. Rg2 {[%clk 0:00:03]}  Kc4 {[%clk 0:00:07]} 74. Ke2 {[%clk 0:00:02]}  Kd4 {[%clk 0:00:07]} 75. Kf1 {[%clk 0:00:03]}  Ke3 {[%clk 0:00:07]} 76. Kg1 {[%clk 0:00:03]}  Kf3 {[%clk 0:00:07]} 77. Ra2 {[%clk 0:00:02]}  Re4 {[%clk 0:00:08]} 78. Ra3+ {[%clk 0:00:02]}  Re3 {[%clk 0:00:08]} 79. Ra1 {[%clk 0:00:02]}  Ng4 {[%clk 0:00:07]} 80. Rf1+ {[%clk 0:00:02]}  Nf2 {[%clk 0:00:08]} 81. Rd1 {[%clk 0:00:01]}  Nxd1 {[%clk 0:00:07]} 0-1


[Site "https://www.chess.com"]

[Event "Titled Tuesday Blitz May 24 Early 2022"]
[White "Miszler, Levente"]
[Black "Ronka, Erik"]
[WhiteFideId "763276"]
[BlackFideId "505080"]
[WhiteElo "1966"]
[BlackElo "2264"]
[Result "0-1"]
[Round "09"]
[TimeControl "180+1"]
[Date "2022.05.25"]
[WhiteClock "0:01:53"]
[BlackClock "0:02:23"]

1. Nf3 {[%clk 0:03:00]}  d5 {[%clk 0:02:59]} 2. d4 {[%clk 0:02:57]}  e6 {[%clk 0:02:55]} 3. g3 {[%clk 0:02:50]}  b5 {[%clk 0:02:55]} 4. Bg2 {[%clk 0:02:50]}  Nf6 {[%clk 0:02:52]} 5. O-O {[%clk 0:02:48]}  Be7 {[%clk 0:02:51]} 6. Nbd2 {[%clk 0:02:42]}  O-O {[%clk 0:02:51]} 7. Re1 {[%clk 0:02:38]}  Bb7 {[%clk 0:02:51]} 8. c3 {[%clk 0:02:36]}  Nbd7 {[%clk 0:02:48]} 9. Qc2 {[%clk 0:02:34]}  c5 {[%clk 0:02:47]} 10. dxc5 {[%clk 0:02:33]}  Nxc5 {[%clk 0:02:46]} 11. Nd4 {[%clk 0:02:32]}  a6 {[%clk 0:02:44]} 12. N2f3 {[%clk 0:02:27]}  Rc8 {[%clk 0:02:43]} 13. Ne5 {[%clk 0:02:03]}  Nce4 {[%clk 0:02:25]} 14. Bg5 {[%clk 0:01:53]}  Nxg5 {[%clk 0:02:23]} 0-1


[Site "https://www.chess.com"]